Workbook

Sheet Title
I5: GAZ-SYSTEM the system that connects
A17: Simplified tariff model for high-methane gas (E)
A18: Publication if fulfilment of article 30 of TAR NC
A20: December, 2017

Sheet Model_E
B5: Simplified Tariff Model for Highmethane gas (gas E)
B6: Please fill in the orange fields only
B8: =IF(AND($I$25>0,OR($I$34="",$I$34=0,$I$40="",$I$40=0)),"Please enter forecasted entry and exit capacity","") -> 
B10: =IF(AND($I$27>0,OR($I$45="",$I$45=0)),"Please enter forecasted volume of gas","") -> 
B12: =IF(AND($I$29<1,$I$31<1,OR(I36="",I36=0,I38="",I38=0)),"Please enter UGS and LNG capacity",IF(AND($I$29<1,OR($I$36="",$I$36=0,$I$42="",$I$42=0)),"Please enter UGS forecasted capacity",IF(AND($I$31<1,OR($I$38="",$I$38=0)),"Please enter LNG forecasted capacity",IF(AND($I$29<1,$I$31<1,OR(I36="",I36=0,I38="",I38=0)),"Please enter UGS and LNG capacity","")))) -> 
D14: Tariff year 2018 | H14: Tariff year 2019
B17: Allowed revenue (Projection) in PLN | C17: PLN | E17: 1515580859 | I17: 1515580859
B19: Entry/Exit split
B20: Entry | C20: % | E20: 0.5 | I20: 0.5
B22: Exit | C22: % | E22: =1-$E$20 -> 0.5 | I22: =1-$I$20 -> 0.5
B24: Capacity/commodity split
B25: Capacity | C25: % | E25: 0.9 | I25: 0.9
B27: Commodity | C27: % | E27: =1-$E$25 -> 0.1 | I27: =1-$I$25 -> 0.1
B29: UGS Discount | C29: % | E29: 0.8 | I29: 0.8
B31: LNG Disount | C31: % | E31: 1 | I31: 1
B33: Forecast of capacity sales
B34: Entry Points | C34: kWh/h | E34: 21396797 | I34: 21396797
I35: 0
B36: Entry UGS | C36: kWh/h | E36: 21127648.6 | I36: 21127649
B38: Entry LNG | C38: kWh/h | E38: 0 | I38: 0
B40: Exit Points | C40: kWh/h | E40: 44784000.06 | I40: 44784000
B42: Exit UGS | C42: kWh/h | E42: 12169650 | I42: 12169650
B44: Forecast of commodity sales
B45: Total volume high-methane gas (Projection) | C45: kWh | E45: 1.852741974e+11 | I45: 185274197443
B47: Reserve prices
B48: Entry Points - high-methane | C48: gr/kWh/h | E48: 0.303856794 | I48: =$T$67 -> 0.3038567954
B50: Entry Points UGS - high-methane | C50: gr/kWh/h | E50: 0.0608 | I50: =$T$68 -> 0.06077135907
B52: Entry Points LNG - high-methane | C52: gr/kWh/h | E52: 0 | I52: =$T$69 -> 0
B54: Exit Points - high-methane | C54: gr/kWh/h | E54: 0.1648850889 | I54: =$T$70 -> 0.1648847824
B56: Exit Points UGS - high-methane | C56: gr/kWh/h | E56: 0.03297582844 | I56: =$T$71 -> 0.03297695647
B58: Commodity fee - high-methane | C58: gr/kWh | E58: 0.08180204693 | I58: =$T$72 -> 0.08180204691
B62: Gas transmission simplified tariff model allows for estimation of reserve prices for firm yearly contracts only. We hereby inform that all data calculated above has been given for information only and it does not constitute an offer within the meaning of Article 66 and subsequent articles of Polish Civil Code. The above calculated reserve prices are net prices. Above prices shall be increased by the value-added tax (VAT), at the applicable under the relevant tax regulations. Simplified tariff model for gas transmission can only be used for estimating reserve prices for standard product for an exemplary client. Due to variety of products including interruptible products and short-term products the applicable tariff may vary. from calculated. Calculated reserve prices for tariff year 2019 are to be considered indicative ones. In particular, reserve prices were not subject to approval of the relevant body in Poland, i.e. President of Energy Regulatory Office. All the inconsistencies between the model and Publication Document might arise from the fact that the reserve prices are rounded to the fourth decimal place. | N62: nie kasowac!!
N63: komórki robocze - nie dodawać wierszy ani kolumn w tym skoroszycie!!!
N66: Discount | O66: Split | R66: Moc do kalkulacji | S66: Revenue | T66: Tariff
N67: 0 | O67: 0.05 | Q67: Entry Points | R67: =I34 -> 21396797 | S67: =$I$17*$I$25*$I$20*$R$67/SUM($R$67:$R$69) -> 569536845.9 | T67: =IF(ISERROR($S$67/($I$34*8760)*100),0,$S$67/($I$34*8760)*100) -> 0.3038567954
N68: 0.1 | O68: 0.1 | Q68: Entry UGS | R68: =$I$36*(1-$I$29) -> 4225529.8 | S68: =$I$17*$I$25*$I$20*$R$68/SUM($R$67:$R$69) -> 112474540.7 | T68: =IF(ISERROR($S$68/($I$36*8760)*100),0,$S$68/($I$36*8760)*100) -> 0.06077135907 | U68: =T68/T67 -> 0.2 | V68: =IF(U68=(1-$I$29),"ok","check") -> ok
N69: 0.2 | O69: 0.15 | Q69: Entry LNG | R69: =$I$38*(1-$I$31) -> 0 | S69: =$I$17*$I$25*$I$20*$R$69/SUM($R$67:$R$69) -> 0 | T69: =IF(I38=0,0,$S$69/($I$38*8760)*100) -> 0 | U69: =T69/T67 -> 0 | V69: =IF(U69=(1-$I$31),"ok","check") -> ok
N70: 0.3 | O70: 0.2 | Q70: Exit Points | R70: =$I$40 -> 44784000 | S70: =$I$17*$I$25*$I$22*$R$70/SUM($R$70:$R$71) -> 646855928.1 | T70: =IF(ISERROR($S$70/($I$40*8760)*100),0,$S$70/($I$40*8760)*100) -> 0.1648847824
N71: 0.4 | O71: 0.25 | Q71: Exit UGS | R71: =$I$42*(1-$I$29) -> 2433930 | S71: =$I$17*$I$25*$I$22*$R$71/SUM($R$70:$R$71) -> 35155458.4 | T71: =IF(ISERROR($S$71/($I$42*8760)*100),0,$S$71/($I$42*8760)*100) -> 0.03297695647 | U71: =T71/T70 -> 0.2 | V71: =IF(U71=(1-$I$29),"ok","check") -> ok
N72: 0.5 | O72: 0.3 | Q72: Commodity | R72: =I45 -> 185274197443 | S72: =$I$17*$I$27 -> 151558085.9 | T72: =$S$72/$I$45*100 -> 0.08180204691
N73: 0.6 | O73: 0.35 | S73: =SUM(S67:S72) -> 1515580859
N74: 0.7 | O74: 0.4 | S74: =IF($S$73=$E$17,"ok.","check") -> check
N75: 0.8 | O75: 0.45
N76: 0.9 | O76: 0.5
N77: 1 | O77: 0.6
O78: 0.65
O79: 0.7
O80: 0.75
O81: 0.8
O82: 0.85
O83: 0.9
O84: 0.95
O85: 1
